Workbook

Sheet Sygehus og kildeoplysninger
A1: Konventionelle røntgenundersøgelser på børn 0-17 år
A2: Sygehus- og kildeoplysninger
A3: Sygehus
A4: Afdeling
A5: SOR-ID eller AFD-ID
A6: Rum-nr.
A7: SIS-registrerings nummer STG-xxxxxxxx
A8: Kilde-fabrikat
A9: Model
A10: Yderligere oplysninger
A11: Oplysninger om dosisreduktion
A12: Fokusstørrelser
A13: Kommentarer
A22: Dette dokument benyttes i forbindelse med indsamling og indsendelse af patientdoser på børn ved konventionelle røntgenundersøgelser. Der skal udfyldes et exceldokument pr. røntgenrum. Vær opmærksom på der findes 2 indtastningsark til børn: konventionelle røntgenundersøgelser og CT-skanning. På fane for hver undersøgelsestype udfyldes oplysninger om protokol øverst og oplysninger om de enkelte patientundersøgelser nederst. For patientundersøgelserne er de celler, der som minimum skal udfyldes, markeret med blåt. Information om hvordan patientdoser på børn måles kan findes i vejledning på SIS' hjemmeside www.sis.dk: Patientdosimetri ved røntgenundersøgelser af børn, 2022. NB: Projektmappen er beskyttet, således at der ikke kan slettes, indsættes eller omdøbes ark. Ligeledes er de enkelte ark beskyttet, således at der ikke kan ændres i oplysningerne i toppen af arket. Sundhedsstyrelsen, Strålebeskyttelse, April 2022

Sheet Thorax liggende
A1: Thorax, liggende - børn
A3: Protokoloplysninger
A4: Rum:
A5: Undersøgelse: | F5: RU thorax
A6: SKS: | F6: UXRC00
A7: Raster:
A8: Støjreduktion:
A9: FFA cm:
A10: Supplerende filter (Cu, Al):
A11: Fokus størrelse:
A13: Højde [cm] | B13: Vægt [kg] | C13: Køn [K/M] | D13: Alder [år] | E13: Antal optagelser | F13: KAP [Gy·cm²] | G13: Spænding [kV] | H13: Dosisautomatik | I13: mAs | J13: Kommentarer herunder raster eller kompression | L13: Referencedoser
L14: Alder | M14: KAP [Gy·cm²]
L15: [<5 kg] | M15: 0.013
L16: [5-<15 kg] | M16: 0.03
A45: Kommentarer

Sheet Thorax stående, siddende
A1: Thorax, siddende eller stående - børn
A3: Protokoloplysninger
A4: Rum:
A5: Undersøgelse: | F5: RU thorax
A6: SKS: | F6: UXRC00
A7: Raster:
A8: Støjreduktion:
A9: FFA cm:
A10: Supplerende filter (Cu, Al):
A11: Fokus størrelse:
A13: Højde [cm] | B13: Vægt [kg] | C13: Køn [K/M] | D13: Alder [år] | E13: Antal optagelser | F13: KAP [Gy·cm²] | G13: Spænding [kV] | H13: Dosisautomatik | I13: mAs | J13: Kommentarer herunder raster eller kompression | L13: Referencedoser
L14: Alder | M14: KAP [Gy·cm²]
L15: [15-<30 kg] | M15: 0.028
L16: [30-<50 kg] | M16: 0.05
L17: [50-<70 kg] | M17: 0.097
A45: Kommentarer

Sheet Oversigt o. Abd.
A1: Oversigt over abdomen - børn
A3: Protokoloplysninger
A4: Rum:
A5: Undersøgelse: | F5: Oversigt over abdomen
A6: SKS: | F6: UXRD00
A7: Raster:
A8: Støjreduktion:
A9: FFA cm:
A10: Supplerende filter (Cu, Al):
A11: Fokus størrelse:
A13: Højde [cm] | B13: Vægt [kg] | C13: Køn [K/M] | D13: Alder [år] | E13: Antal optagelser | F13: KAP [Gy·cm²] | G13: Spænding [kV] | H13: Dosisautomatik | I13: mAs | J13: Projektioner | K13: Kommentarer herunder raster eller kompression | M13: Referencedoser
M14: Alder | N14: KAP [Gy·cm²]
M15: [5-<15 kg] | N15: 0.073
M16: [15-<30kg] | N16: 0.237
M17: [30-<50 kg] | N17: 0.534
M18: [50-<70 kg] | N18: 1.54
A45: Kommentarer

Sheet Bækken
A1: Bækken - børn
A3: Protokoloplysninger
A4: Rum:
A5: Undersøgelse: | F5: Bækken, f.eks. dysplasi eller metastaser
A6: SKS: | F6: UXRG10
A7: Raster:
A8: Støjreduktion:
A9: FFA cm:
A10: Supplerende filter (Cu, Al):
A11: Fokus størrelse:
A13: Højde [cm] | B13: Vægt [kg] | C13: Køn [K/M] | D13: Alder [år] | E13: Antal optagelser | F13: KAP [Gy·cm²] | G13: Spænding [kV] | H13: Dosisautomatik | I13: mAs | J13: Kommentarer herunder raster eller kompression | L13: Referencedoser
L14: Alder | M14: KAP [Gy·cm²]
L15: [5-<15 kg] | M15: 0.041
L16: [15-<30kg] | M16: 0.13
L17: [30-<50 kg] | M17: 0.33
L18: [50-<70 kg] | M18: 0.646
A45: Kommentarer

Sheet Bækken og hofter
A1: Bækken og hofter - børn
A3: Protokoloplysninger
A4: Rum:
A5: Undersøgelse: | F5: Bækken og hofter, f.eks. Smerter, patologisk gang eller kontrol
A6: SKS: | F6: UXRG10, UXRG15,
A7: Raster:
A8: Støjreduktion:
A9: FFA cm:
A10: Supplerende filter (Cu, Al):
A11: Fokus størrelse:
A13: Højde [cm] | B13: Vægt [kg] | C13: Køn [K/M] | D13: Alder [år] | E13: Antal optagelser | F13: KAP [Gy·cm²] | G13: Spænding [kV] | H13: Dosisautomatik | I13: mAs | J13: Projektioner | K13: Kommentarer herunder raster eller kompression | M13: Referencedoser
M14: Alder | N14: KAP [Gy·cm²]
M15: [5-<15 kg] | N15: 0.048
M16: [15-<30kg] | N16: 0.088
A45: Kommentarer

Sheet Andre
A1: Indtast protokol navn - børn
A3: Protokoloplysninger
A4: Rum:
A5: Undersøgelse:
A6: SKS:
A7: Raster:
A8: Støjreduktion:
A9: FFA cm:
A10: Supplerende filter (Cu, Al):
A11: Fokus størrelse:
A13: Højde [cm] | B13: Vægt [kg] | C13: Køn [K/M] | D13: Alder [år] | E13: Antal optagelser | F13: KAP [Gy·cm²] | G13: Spænding [kV] | H13: Dosisautomatik | I13: mAs | J13: Projektioner | K13: Kommentarer herunder raster eller kompression
A45: Kommentarer

Sheet Lister (hidden)
G1: År | I1: Mdr
A2: Stå/sidde | B2: AP/PA | C2: 1. gang | D2: Aksial | E2: Ja
A3: Liggende | B3: AP/PA + lat. | C3: Kontrol | D3: Lauenstein | E3: Nej

Sheet Data_kurver (hidden)
A1: Thorax | G1: Oversigt over abdomen | M1: Bækken | R1: Bækken og hofter
A3: [5-<15 kg] | C3: 0.03 | G3: [5-<15 kg] | I3: 0.073 | M3: [5-<15 kg] | O3: 0.041 | R3: [5-<15 kg] | T3: 0.048
A4: [15-<30kg] | C4: 0.028 | G4: [15-<30kg] | I4: 0.237 | M4: [15-<30kg] | O4: 0.13 | R4: [15-<30kg] | T4: 0.088
A5: [30-<50 kg] | C5: 0.05 | G5: [30-<50 kg] | I5: 0.534 | M5: [30-<50 kg] | O5: 0.33
A6: [50-<70 kg] | C6: 0.097 | G6: [50-<70 kg] | I6: 1.54 | M6: [50-<70 kg] | O6: 0.646
B9: k | C9: DQ2 | D9: DQ3 | H9: k | I9: DQ2 | J9: DQ3 | N9: k | O9: DQ2 | P9: DQ3 | S9: k | T9: DQ2 | U9: DQ3
A10: Samlet | G10: Samlet | H10: 0.056 | I10: 0.0284 | J10: 0.0608 | M10: Samlet | N10: 0.065 | O10: 0.0142 | P10: 0.0243 | R10: Samlet | S10: 0.144 | T10: 0.0052 | U10: 0.0105
A11: Liggende | B11: 0.1473 | C11: 0.005374548537 | D11: 0.007822705719 | G11: Et billede | H11: 0.047 | I11: 0.0178 | J11: 0.0349
A12: Siddende/stående | B12: 0.0359 | C12: 0.007479 | D12: 0.012752 | G12: To billeder | H12: 0.067 | I12: 0.0371 | J12: 0.0708
B16: Liggende | D16: Siddende | H16: Samlet | J16: 1 Projektion | N16: Samlet | S16: Samlet
A17: w | B17: Q2 | C17: Q3 | D17: Q2 | E17: Q3 | G17: w | H17: Q2 - samlet | I17: Q3 - samlet | J17: Q2 - 1 pr | K17: Q3 - 1 projektion | M17: w | N17: Q2 | O17: Q3 | R17: w | S17: Q2 - samlet | T17: Bækken - alle
A18: 5 | B18: =$C$11*EXP($B$11*$A18) -> 0.01122534959 | C18: =$D$11*EXP($B$11*$A18) -> 0.01633860144 | D18: =$C$12*EXP($B$12*$A18) -> 0.008949512784 | E18: =$D$12*EXP($B$12*$A18) -> 0.01525928426 | G18: 5 | H18: =$I$10*EXP($H$10*$G18) -> 0.03757688667 | I18: =$J$10*EXP($H$10*$G18) -> 0.08044629259 | J18: =$I$11*EXP($H$11*$G18) -> 0.02251537608 | K18: =$J$11*EXP($H$11*$G18) -> 0.04414531603 | M18: 5 | N18: =$O$10*EXP($N$10*M18) -> 0.01965323517 | O18: =$P$10*EXP($N$10*M18) -> 0.0336319447 | R18: 5 | S18: =Data_kurver!$T$10*EXP(Data_kurver!$S$10*$R18) -> 0.0106830527 | T18: =Data_kurver!$U$10*EXP(Data_kurver!$S$10*$R18) -> 0.02157154871
A19: 6 | B19: 0.01300682965 | C19: 0.01893156234 | D19: 0.00927663704 | E19: 0.01581704446 | G19: 6 | H19: =$I$10*EXP($H$10*$G19) -> 0.0397412283 | I19: =$J$10*EXP($H$10*$G19) -> 0.08507981271 | J19: =$I$11*EXP($H$11*$G19) -> 0.02359886122 | K19: =$J$11*EXP($H$11*$G19) -> 0.04626967733 | M19: 6 | N19: =$O$10*EXP($N$10*M19) -> 0.02097312727 | O19: =$P$10*EXP($N$10*M19) -> 0.03589063329 | R19: 6 | S19: =Data_kurver!$T$10*EXP(Data_kurver!$S$10*R19) -> 0.01233768779 | T19: =Data_kurver!$U$10*EXP(Data_kurver!$S$10*R19) -> 0.0249126388
A20: 7 | B20: 0.01507103331 | C20: 0.02193603009 | D20: 0.009615718404 | E20: 0.01639519202 | G20: 7 | H20: 0.042030231 | I20: 0.08998021285 | J20: 0.02473448583 | K20: 0.04849626716 | M20: 7 | N20: 0.02238166204 | O20: 0.03830101321 | R20: 7 | S20: =Data_kurver!$T$10*EXP(Data_kurver!$S$10*R20) -> 0.01424859956 | T20: =Data_kurver!$U$10*EXP(Data_kurver!$S$10*R20) -> 0.02877121066
A21: 8 | B21: 0.01746282922 | C21: 0.02541731144 | D21: 0.009967193932 | E21: 0.01699447212 | G21: 8 | H21: 0.04445107496 | I21: 0.0951628647 | J21: 0.02592475898 | K21: 0.05083000497 | M21: 8 | N21: 0.02388479263 | O21: 0.04087327189 | R21: 8 | S21: =Data_kurver!$T$10*EXP(Data_kurver!$S$10*R21) -> 0.0164554812 | T21: =Data_kurver!$U$10*EXP(Data_kurver!$S$10*R21) -> 0.03322741397
A22: 9 | B22: 0.02023420678 | C22: 0.02945107743 | D22: 0.01033151666 | E22: 0.01761565723 | G22: 9 | H22: 0.04701135391 | I22: 0.1006440253 | J22: 0.02717231047 | K22: 0.05327604693 | M22: 9 | N22: 0.025488872 | O22: 0.04361828095 | R22: 9 | S22: =Data_kurver!$T$10*EXP(Data_kurver!$S$10*R22) -> 0.01900417374 | T22: =Data_kurver!$U$10*EXP(Data_kurver!$S$10*R22) -> 0.03837381236
A23: 10 | B23: 0.02344540618 | C23: 0.03412500823 | D23: 0.01070915618 | E23: 0.01825954801 | G23: 10 | H23: 0.04971909901 | I23: 0.106440888 | J23: 0.02847989664 | K23: 0.05583979734 | M23: 10 | N23: 0.02720067977 | O23: 0.04654764215 | R23: 10 | S23: =Data_kurver!$T$10*EXP(Data_kurver!$S$10*R23) -> 0.02194761825 | T23: =Data_kurver!$U$10*EXP(Data_kurver!$S$10*R23) -> 0.04431730608
A24: 11 | B24: 0.02716622781 | C24: 0.03954069895 | D24: 0.01110059925 | E24: 0.01892697441 | G24: 11 | H24: 0.05258280395 | I24: 0.1125716366 | J24: 0.02985040648 | K24: 0.05852692058 | M24: 11 | N24: 0.02902745089 | O24: 0.04967373638 | R24: 11 | S24: =Data_kurver!$T$10*EXP(Data_kurver!$S$10*R24) -> 0.02534695554 | T24: =Data_kurver!$U$10*EXP(Data_kurver!$S$10*R24) -> 0.05118135252
A25: 12 | B25: 0.0314775495 | C25: 0.04581586803 | D25: 0.01150635042 | E25: 0.0196187967 | G25: 12 | H25: 0.05561145166 | I25: 0.1190555021 | J25: 0.03128686802 | K25: 0.06134335358 | M25: 12 | N25: 0.03097690617 | O25: 0.05300977605 | R25: 12 | S25: =Data_kurver!$T$10*EXP(Data_kurver!$S$10*R25) -> 0.02927279615 | T25: =Data_kurver!$U$10*EXP(Data_kurver!$S$10*R25) -> 0.05910853068
A26: 13 | B26: 0.03647308449 | C26: 0.05308691598 | D26: 0.01192693268 | E26: 0.02033590661 | G26: 13 | H26: 0.05881454247 | I26: 0.1259128233 | J26: 0.03279245496 | K26: 0.064295319 | M26: 13 | N26: 0.03305728497 | O26: 0.05656986089 | R26: 13 | S26: =Data_kurver!$T$10*EXP(Data_kurver!$S$10*R26) -> 0.03380668708 | T26: =Data_kurver!$U$10*EXP(Data_kurver!$S$10*R26) -> 0.06826350276
A27: 14 | B27: 0.04226141849 | C27: 0.06151189031 | D27: 0.01236288814 | E27: 0.02107922845 | G27: 14 | H27: 0.06220212388 | I27: 0.1331651103 | J27: 0.03437049378 | K27: 0.06738933892 | M27: 14 | N27: 0.03527737997 | O27: 0.06036903756 | R27: 14 | S27: =Data_kurver!$T$10*EXP(Data_kurver!$S$10*R27) -> 0.03904280567 | T27: =Data_kurver!$U$10*EXP(Data_kurver!$S$10*R27) -> 0.07883643453
A28: 15 | B28: 0.0489683699 | C28: 0.07127392089 | D28: 0.01281477873 | E28: 0.02184972033 | G28: 15 | H28: 0.06578482214 | I28: 0.1408351122 | J28: 0.03602447099 | K28: 0.0706322493 | M28: 15 | N28: 0.0376465744 | O28: 0.06442336323 | R28: 15 | S28: =Data_kurver!$T$10*EXP(Data_kurver!$S$10*R28) -> 0.04508991582 | T28: =Data_kurver!$U$10*EXP(Data_kurver!$S$10*R28) -> 0.09104694541
A29: 16 | B29: 0.0567397247 | C29: 0.08258520056 | D29: 0.01328318691 | E29: 0.02264837538 | G29: 16 | H29: 0.06957387552 | I29: 0.1489468884 | J29: 0.03775804091 | K29: 0.07403121505 | M29: 16 | N29: 0.0401748816 | O29: 0.06874997345 | R29: 16 | S29: =Data_kurver!$T$10*EXP(Data_kurver!$S$10*R29) -> 0.05207362724 | T29: =Data_kurver!$U$10*EXP(Data_kurver!$S$10*R29) -> 0.1051486704
A30: 17 | B30: 0.06574440533 | C30: 0.09569159754 | D30: 0.01376871643 | E30: 0.02347622301 | G30: 17 | H30: 0.0735811696 | I30: 0.1575258842 | J30: 0.0395750337 | K30: 0.07759374585 | M30: 17 | N30: 0.04287298746 | O30: 0.07336715459 | R30: 17 | S30: =Data_kurver!$T$10*EXP(Data_kurver!$S$10*R30) -> 0.06013900457 | T30: =Data_kurver!$U$10*EXP(Data_kurver!$S$10*R30) -> 0.1214345285
A31: 18 | B31: 0.07617814247 | C31: 0.1108779996 | D31: 0.01427199311 | E31: 0.02433433028 | G31: 18 | H31: 0.07781927454 | I31: 0.1665990103 | J31: 0.04147946383 | K31: 0.08132771279 | M31: 18 | N31: 0.04575229547 | O31: 0.07829442112 | R31: 18 | S31: =Data_kurver!$T$10*EXP(Data_kurver!$S$10*R31) -> 0.06945358068 | T31: =Data_kurver!$U$10*EXP(Data_kurver!$S$10*R31) -> 0.1402428071
A32: 19 | B32: 0.08826772958 | C32: 0.1284745069 | D32: 0.01479366566 | E32: 0.02522380325 | G32: 19 | H32: 0.0823014845 | I32: 0.1761947274 | J32: 0.04347553897 | K32: 0.08524136572 | M32: 19 | N32: 0.04882497499 | O32: 0.08355259805 | R32: 19 | S32: =Data_kurver!$T$10*EXP(Data_kurver!$S$10*R32) -> 0.08021083661 | T32: =Data_kurver!$U$10*EXP(Data_kurver!$S$10*R32) -> 0.1619641893
A33: 20 | B33: 0.1022759525 | C33: 0.1488636066 | D33: 0.01533440648 | E33: 0.0261457884 | G33: 20 | H33: 0.08704185937 | I33: 0.1863431356 | J33: 0.04556766925 | K33: 0.0893433515 | M33: 20 | N33: 0.05210401268 | O33: 0.08916390902 | R33: 20 | S33: =Data_kurver!$T$10*EXP(Data_kurver!$S$10*R33) -> 0.09263422053 | T33: =Data_kurver!$U$10*EXP(Data_kurver!$S$10*R33) -> 0.1870498684
A34: 21 | B34: 0.1185073018 | C34: 0.1724884874 | D34: 0.01589491256 | E34: 0.02710147412 | G34: 21 | H34: 0.09205526886 | I34: 0.1970760685 | J34: 0.04776047704 | K34: 0.09364273307 | M34: 21 | N34: 0.05560326734 | O34: 0.09515207016
A35: 22 | B35: 0.1373145909 | C35: 0.1998626728 | D35: 0.01647590636 | E35: 0.02809209225 | G35: 22 | H35: 0.09735743912 | I35: 0.2084271936 | J35: 0.05005880715 | K35: 0.09814900952 | M35: 22 | N35: 0.05933752853 | O35: 0.1015423904
A36: 23 | B36: 0.1591066254 | C36: 0.231581183 | D36: 0.01707813676 | E36: 0.02911891963 | G36: 23 | H36: 0.1029650021 | I36: 0.2204321172 | J36: 0.05246773752 | K36: 0.1028721371 | M36: 23 | N36: 0.06332257905 | O36: 0.1083618782
A37: 24 | B37: 0.1843570889 | C37: 0.2683334691 | D37: 0.01770237999 | E37: 0.0301832798 | G37: 24 | H37: 0.1088955477 | I37: 0.2331284966 | J37: 0.05499259046 | K37: 0.107822551 | M37: 24 | N37: 0.06757526168 | O37: 0.1156393563
A38: 25 | B38: 0.2136148394 | C38: 0.3109183988 | D38: 0.01834944068 | E38: 0.03128654466 | G38: 25 | H38: 0.1151676791 | I38: 0.246556158 | J38: 0.0576389444 | K38: 0.1130111887 | M38: 25 | N38: 0.07211355033 | O38: 0.1234055826
A39: 26 | B39: 0.2475158394 | C39: 0.3602616217 | D39: 0.01902015285 | E39: 0.03243013626 | G39: 26 | H39: 0.1218010706 | I39: 0.2607572216 | J39: 0.06041264621 | K39: 0.1184495142 | M39: 26 | N39: 0.07695662601 | O39: 0.1316933811
A40: 27 | B40: 0.2867969796 | C40: 0.4174356892 | D40: 0.01971538101 | E40: 0.03361552864 | G40: 27 | H40: 0.1288165302 | I40: 0.2757762336 | J40: 0.06331982412 | K40: 0.1241495428 | M40: 27 | N40: 0.08212495794 | O40: 0.1405377801
A41: 28 | B41: 0.3323120966 | C41: 0.4836833681 | D41: 0.02043602129 | E41: 0.0348442497 | G41: 28 | H41: 0.1362360639 | I41: 0.2916603059 | J41: 0.06636690127 | K41: 0.1301238682 | M41: 28 | N41: 0.08764038999 | O41: 0.1499761603
A42: 29 | B42: 0.3850505319 | C42: 0.5604446545 | D42: 0.02118300254 | E42: 0.0361178832 | G42: 29 | H42: 0.1440829456 | I42: 0.3084592639 | J42: 0.06956060989 | K42: 0.1363856902 | M42: 29 | N42: 0.09352623308 | O42: 0.1600484129
A43: 30 | B43: 0.4461586371 | C43: 0.6493880738 | D43: 0.02195728759 | E43: 0.03743807078 | G43: 30 | H43: 0.1523817896 | I43: 0.326225803 | J43: 0.07290800619 | K43: 0.1429488436 | M43: 30 | N43: 0.09980736364 | O43: 0.1707971082
A44: 31 | B44: 0.5169646916 | C44: 0.7524469491 | D44: 0.02275987446 | E44: 0.03880651411 | G44: 31 | H44: 0.1611586277 | I44: 0.3450156537 | J44: 0.07641648593 | K44: 0.1498278292 | M44: 31 | N44: 0.1065103288 | O44: 0.1822676754
A45: 32 | B45: 0.5990077746 | C45: 0.8718614246 | D45: 0.02359179762 | E45: 0.04022497704 | G45: 32 | H45: 0.1704409914 | I45: 0.3648877562 | J45: 0.08009380076 | K45: 0.1570378453 | M45: 32 | N45: 0.1136634586 | O45: 0.1945085946
A46: 33 | B46: 0.6940712197 | C46: 1.010227159 | D46: 0.0244541294 | E46: 0.04169528788 | G46: 33 | H46: 0.1802579977 | I46: 0.3859044458 | J46: 0.08394807537 | K46: 0.1645948219 | M46: 33 | N46: 0.1212969856 | O46: 0.2075716021
A47: 34 | B47: 0.8042213782 | C47: 1.170551746 | D47: 0.02534798129 | E47: 0.04321934181 | G47: 34 | H47: 0.1906404408 | I47: 0.408131648 | J47: 0.08798782541 | K47: 0.1725154554 | M47: 34 | N47: 0.1294431728 | O47: 0.2215119084
A48: 35 | B48: 0.9318525345 | C48: 1.356320089 | D48: 0.02627450542 | E48: 0.04479910323 | G48: 35 | H48: 0.2016208887 | I48: 0.4316390856 | J48: 0.09222197634 | K48: 0.1808172458 | M48: 35 | N48: 0.13813645 | O48: 0.236388432
A49: 36 | B49: 1.079738949 | C49: 1.571570151 | D49: 0.02723489603 | E49: 0.04643660839 | G49: 36 | H49: 0.2132337848 | I49: 0.4565004971 | J49: 0.09665988313 | K49: 0.1895185349 | M49: 36 | N49: 0.1474135592 | O49: 0.2522640485
A50: 37 | B50: =$C$11*EXP($B$11*$A50) -> 1.251095163 | C50: =$D$11*EXP($B$11*$A50) -> 1.820980724 | D50: =$C$12*EXP($B$12*$A50) -> 0.02823039101 | E50: =$D$12*EXP($B$12*$A50) -> 0.04813396794 | G50: 37 | H50: 0.2255155569 | I50: 0.4827938684 | J50: 0.1013113509 | K50: 0.1986385476 | M50: 37 | N50: 0.15731371 | O50: 0.2692058559
A51: 38 | B51: 1.449645869 | C51: 2.109973136 | D51: 0.02926227352 | E51: 0.04989336969 | G51: 38 | H51: 0.2385047307 | I51: 0.5106016769 | J51: 0.1061866566 | K51: 0.2081974335 | M51: 38 | N51: 0.1678787453 | O51: 0.2872854585
A52: 39 | B52: 1.679706874 | C52: 2.444829082 | D52: 0.03033187359 | E52: 0.05171708143 | G52: 39 | H52: 0.2522420507 | I52: 0.5400111508 | J52: 0.1112965719 | K52: 0.2182163123 | M52: 39 | N52: 0.179153318 | O52: 0.3065792696
A53: 40 | B53: 1.94627891 | C53: 2.832827177 | D53: 0.03144056988 | E53: 0.05360745381 | G53: 40 | H53: 0.2667706086 | I53: 0.5711145423 | J53: 0.1166523865 | K53: 0.2287173197 | M53: 40 | N53: 0.1911850801 | O53: 0.3271688343
A54: 41 | B54: 2.255156334 | C54: 3.28240116 | D54: 0.03258979144 | E54: 0.05556692344 | G54: 41 | H54: 0.2821359777 | I54: 0.6040094171 | J54: 0.1222659338 | K54: 0.2397236566 | M54: 41 | N54: 0.2040248836 | O54: 0.349141174
A55: 42 | B55: 2.613053075 | C55: 3.803323218 | D55: 0.03378101956 | E55: 0.05759801596 | G55: 42 | H55: 0.2983863565 | I55: 0.6387989604 | J55: 0.1281496161 | K55: 0.2512596406 | M55: 42 | N55: 0.2177269957 | O55: 0.3725891546
A56: 43 | B56: 3.027748574 | C56: 4.406916399 | D56: 0.03501578967 | E56: 0.05970334936 | G56: 43 | H56: 0.3155727195 | I56: 0.6755923009 | J56: 0.1343164331 | K56: 0.2633507593 | M56: 43 | N56: 0.2323493283 | O56: 0.3976118787
A57: 44 | B57: 3.508256879 | C57: 5.106300736 | D57: 0.03629569333 | E57: 0.0618856373 | G57: 44 | H57: 0.3337489772 | I57: 0.7145048526 | J57: 0.1407800097 | K57: 0.2760237269 | M57: 44 | N57: 0.2479536825 | O57: 0.4243151046
A58: 45 | B58: 4.065022583 | C58: 5.916678431 | D58: 0.03762238027 | E58: 0.06414769263 | G58: 45 | H58: 0.3529721452 | I58: 0.7556586771 | J58: 0.1475546266 | K58: 0.2893065432 | M58: 45 | N58: 0.2646060099 | O58: 0.452811693
A59: 46 | B59: 4.710147851 | C59: 6.855664299 | D59: 0.03899756051 | E59: 0.06649243103 | G59: 46 | H59: 0.3733025232 | I59: 0.7991828666 | J59: 0.1546552517 | K59: 0.3032285553 | M59: 46 | N59: 0.2823766914 | O59: 0.4832220845
A60: 47 | B60: 5.45765548 | C60: 7.943668653 | D60: 0.0404230066 | E60: 0.06892287474 | G60: 47 | H60: 0.3948038839 | I60: 0.8452139486 | J60: 0.1620975731 | K60: 0.3178205226 | M60: 47 | N60: 0.3013408345 | O60: 0.5156748083
A61: 48 | B61: 6.323793708 | C61: 9.204340954 | D61: 0.04190055586 | E61: 0.07144215648 | G61: 48 | H61: 0.4175436731 | I61: 0.8938963143 | J61: 0.169898034 | K61: 0.3331146847 | M61: 48 | N61: 0.3215785909 | O61: 0.5503070253
A62: 49 | B62: 7.32738939 | C62: 10.66508387 | D62: 0.04343211278 | E62: 0.07405352348 | G62: 49 | H62: 0.4415932216 | I62: 0.9453826716 | J62: 0.1780738688 | K62: 0.3491448326 | M62: 49 | N62: 0.3431754954 | O62: 0.5872651083
A63: 50 | B63: 8.490257234 | C63: 12.3576489 | D63: 0.04501965144 | E63: 0.07676034165 | G63: 50 | H63: 0.4670279683 | I63: 0.9998345237 | J63: 0.1866431411 | K63: 0.3659463834 | M63: 50 | N63: 0.3662228268 | O63: 0.62670526
A64: 51 | B64: 9.837673974 | C64: 14.31882658 | D64: 0.04666521812 | E64: 0.07956609994 | G64: 51 | H64: 0.4939276975 | I64: 1.057422676 | J64: 0.195624784 | K64: 0.3835564586 | M64: 51 | N64: 0.3908179946 | O64: 0.6687941738
A65: 52 | B65: 11.3989278 | C65: 16.59124614 | D65: 0.04837093386 | E65: 0.08247441484 | G65: 52 | H65: 0.5223767888 | I65: 1.118327773 | J65: 0.2050386417 | K65: 0.402013966 | M65: 52 | N65: 0.4170649498 | O65: 0.7137097381
A66: 53 | B66: 13.20795498 | C66: 19.22430215 | D66: 0.05013899723 | E66: 0.085489035 | G66: 53 | H66: 0.5524644819 | I66: 1.182740863 | J66: 0.214905513 | K66: 0.4213596857 | M66: 53 | N66: 0.4450746249 | O66: 0.7616417878
A67: 54 | B67: 15.30407753 | C67: 22.27522815 | D67: 0.05197168719 | E67: 0.08861384611 | G67: 54 | H67: 0.5842851564 | I67: 1.250863997 | J67: 0.2252471981 | K67: 0.4416363603 | M67: 54 | N67: 0.4749654025 | O67: 0.8127929071
A68: 55 | B68: 17.73285792 | C68: 25.81034074 | D68: 0.05387136597 | E68: 0.0918528759 | G68: 55 | H68: 0.6179386281 | I68: 1.322910866 | J68: 0.2360865458 | K68: 0.4628887892 | M68: 55 | N68: 0.5068636156 | O68: 0.8673792858
A69: 56 | B69: 20.54708945 | C69: 29.90648108 | D69: 0.05584048217 | E69: 0.09521029932 | G69: 56 | H69: 0.6535304617 | I69: 1.399107467 | J69: 0.2474475047 | K69: 0.4851639278 | M69: 56 | N69: 0.5409040815 | O69: 0.9256316324
A70: 57 | B70: 23.80794381 | C70: 34.65268513 | D70: 0.05788157386 | E70: 0.0986904439 | G70: 57 | H70: 0.6911723026 | I70: 1.479692817 | J70: 0.2593551758 | K70: 0.5085109907 | M70: 57 | N70: 0.5772306719 | O70: 0.9877961498
A71: 58 | B71: 27.58630071 | C71: 40.15211898 | D71: 0.05999727192 | E71: 0.1022977954 | G71: 58 | H71: 0.7309822263 | I71: 1.564919696 | J71: 0.2718358679 | K71: 0.5329815612 | M71: 58 | N71: 0.6159969207 | O71: 1.054135576
A72: 59 | B72: 31.9642886 | C72: 46.52432135 | D72: 0.06219030337 | E72: 0.1060370034 | G72: 59 | H72: 0.7730851093 | I72: 1.655055445 | J72: 0.284917156 | K72: 0.5586297047 | M72: 59 | N72: 0.6573666729 | O72: 1.124930292
A73: 60 | B73: 37.03706983 | C73: 53.90780192 | D73: 0.06446349491 | E73: 0.1099128877 | G73: 60 | H73: 0.817613021 | I73: 1.750382805 | J73: 0.298627942 | K73: 0.5855120885 | M73: 60 | N73: 0.7015147773 | O73: 1.200479513
A74: 61 | B74: 42.91490916 | C74: 62.4630521 | D74: 0.06681977657 | E74: 0.113930444 | G74: 61 | H74: 0.8647056372 | I74: 1.851200801 | J74: 0.3129985185 | K74: 0.6136881065 | M74: 61 | N74: 0.7486278253 | O74: 1.281102546
A75: 62 | B75: 49.72557053 | C75: 72.3760335 | D75: 0.06926218548 | E75: 0.1180948508 | G75: 62 | H75: 0.914510679 | I75: 1.957825679 | J75: 0.328060636 | K75: 0.6432200111 | M75: 62 | N75: 0.7989049397 | O75: 1.367140143
A76: 63 | B76: 57.61709422 | C76: 83.86222012 | D76: 0.07179386977 | E76: 0.1224114758 | G76: 63 | H76: 0.9671843758 | I76: 2.070591903 | J76: 0.343847573 | K76: 0.6741730503 | M76: 63 | N76: 0.852558616 | O76: 1.458955942
A77: 64 | B77: 66.76101473 | C77: 97.17128204 | D77: 0.07441809266 | E77: 0.1268858828 | G77: 64 | H77: 1.022891956 | I77: 2.189853201 | J77: 0.360394209 | K77: 0.706615612 | M77: 64 | N77: 0.9098156209 | O77: 1.556937999
A78: 65 | B78: 77.35608933 | C78: 112.5925123 | D78: 0.07713823663 | E78: 0.1315238392 | G78: 65 | H78: 1.081808163 | I78: 2.315983673 | J78: 0.3777371024 | K78: 0.7406193749 | M78: 65 | N78: 0.9709179504 | O78: 1.661500436
A79: 66 | B79: 89.6326184 | C79: 130.4611153 | D79: 0.07995780781 | E79: 0.1363313231 | G79: 66 | H79: 1.144117807 | I79: 2.449378968 | J79: 0.3959145706 | K79: 0.7762594672 | M79: 66 | N79: 1.036123853 | O79: 1.773085185
A80: 67 | B80: 103.8574513 | C80: 151.1654928 | D80: 0.08288044048 | E80: 0.141314531 | G80: 67 | H80: 1.210016343 | I80: 2.590457523 | J80: 0.4149667752 | K80: 0.8136146323 | M80: 67 | N80: 1.10570892 | O80: 1.892163856
A81: 68 | B81: 120.3397868 | C81: 175.1556865 | D81: 0.08590990177 | E81: 0.146479886 | G81: 68 | H81: 1.279710482 | I81: 2.739661876 | J81: 0.4349358101 | K81: 0.852767403 | M81: 68 | N81: 1.179967252 | O81: 2.019239734
A82: 69 | B82: 139.4378941 | C82: 202.9531604 | D82: 0.08905009648 | E82: 0.151834046 | G82: 69 | H82: 1.353418841 | I82: 2.897460055 | J82: 0.4558657951 | K82: 0.8938042837 | M82: 69 | N82: 1.259212702 | O82: 2.154849905
A83: 70 | B83: 161.5669 | C83: 235.1621357 | D83: 0.09230507218 | E83: 0.1573839123 | G83: 70 | H83: =$I$10*EXP($H$10*$G83) -> 1.431372632 | I83: =$J$10*EXP($H$10*$G83) -> 3.064347043 | J83: =$I$11*EXP($H$11*$G83) -> 0.4778029731 | K83: =$J$11*EXP($H$11*$G83) -> 0.9368159416 | M83: 70 | N83: =$O$10*EXP($N$10*M83) -> 1.343780198 | O83: =$P$10*EXP($N$10*M83) -> 2.299567522
